[Event "*** Titled Tuesday Blitz"]
[Site "Chess.com"]
[Date "2019.04.02"]
[Round "5"]
[White "IMDT02"]
[Black "albi1999"]
[Result "0-1"]
[WhiteElo "2433"]
[BlackElo "2635"]
[TimeControl "180+2"]
[EndTime "15:03:52 PDT"]
[Termination "albi1999 won by resignation"]

1. d4 {[%clk 0:02:59.5]} 1... d5 {[%clk 0:02:57.4]} 2. c4 {[%clk 0:03:00]} 2...
e6 {[%clk 0:02:58.3]} 3. Nc3 {[%clk 0:03:00.7]} 3... Nf6 {[%clk 0:02:59.2]} 4.
cxd5 {[%clk 0:03:01.5]} 4... Nxd5 {[%clk 0:03:00.1]} 5. g3 {[%clk 0:03:00.5]}
5... c5 {[%clk 0:03:00.2]} 6. dxc5 {[%clk 0:02:54.5]} 6... Nxc3 {[%clk
0:03:00.2]} 7. Qxd8+ {[%clk 0:02:49.3]} 7... Kxd8 {[%clk 0:03:02.1]} 8. bxc3
{[%clk 0:02:50.3]} 8... Bxc5 {[%clk 0:03:02.8]} 9. Bg2 {[%clk 0:02:48.5]} 9...
f6 {[%clk 0:03:03.8]} 10. Nf3 {[%clk 0:02:43.6]} 10... Kc7 {[%clk 0:03:04.5]}
11. O-O {[%clk 0:02:41.6]} 11... Bd7 {[%clk 0:03:05.5]} 12. Nd4 {[%clk
0:02:39.3]} 12... e5 {[%clk 0:03:05.4]} 13. Nb3 {[%clk 0:02:38.8]} 13... Be7
{[%clk 0:03:00.8]} 14. f4 {[%clk 0:02:32.7]} 14... Nc6 {[%clk 0:02:50.9]} 15.
fxe5 {[%clk 0:02:33.3]} 15... Nxe5 {[%clk 0:02:50.9]} 16. Bf4 {[%clk 0:02:33.6]}
16... Bd6 {[%clk 0:02:51]} 17. Rfd1 {[%clk 0:02:32.5]} 17... g5 {[%clk
0:02:50.6]} 18. Be3 {[%clk 0:02:30.9]} 18... Bc6 {[%clk 0:02:47.5]} 19. Nd4
{[%clk 0:02:29.1]} 19... Rhe8 {[%clk 0:02:41.5]} 20. Bxc6 {[%clk 0:01:52.2]}
20... bxc6 {[%clk 0:02:40.2]} 21. Nf5 {[%clk 0:01:50.2]} 21... Bf8 {[%clk
0:02:39]} 22. Bd4 {[%clk 0:01:46.1]} 22... h5 {[%clk 0:02:35.9]} 23. Rab1 {[%clk
0:01:46.3]} 23... c5 {[%clk 0:02:35.4]} 24. Bf2 {[%clk 0:01:43]} 24... Nc4
{[%clk 0:02:27]} 25. Kf1 {[%clk 0:01:09.4]} 25... Kc6 {[%clk 0:02:18.7]} 26. Rd3
{[%clk 0:01:06]} 26... Ne5 {[%clk 0:02:02.5]} 27. Rd2 {[%clk 0:01:03.4]} 27...
Nc4 {[%clk 0:01:50.4]} 28. Rd3 {[%clk 0:01:04.5]} 28... Rab8 {[%clk 0:01:47.1]}
29. Rb3 {[%clk 0:01:01.7]} 29... a5 {[%clk 0:01:45.9]} 30. Ne3 {[%clk
0:00:56.6]} 30... Nxe3+ {[%clk 0:01:41.3]} 31. Rxe3 {[%clk 0:00:57.3]} 31...
Rbd8 {[%clk 0:01:23.2]} 32. c4 {[%clk 0:00:38.7]} 32... Rd1+ {[%clk 0:01:21]}
33. Kg2 {[%clk 0:00:38.6]} 33... Rxe3 {[%clk 0:01:20.9]} 34. Bxe3 {[%clk
0:00:39.1]} 34... Ra1 {[%clk 0:01:15.5]} 35. Rb2 {[%clk 0:00:37.2]} 35... Bd6
{[%clk 0:01:14.6]} 36. Bd2 {[%clk 0:00:26.9]} 36... Be5 {[%clk 0:01:09.9]} 37.
Rc2 {[%clk 0:00:23.5]} 37... a4 {[%clk 0:01:10.1]} 38. h4 {[%clk 0:00:20.3]}
38... g4 {[%clk 0:01:09]} 39. Bf4 {[%clk 0:00:20.2]} 39... Bxf4 {[%clk
0:00:57.9]} 40. gxf4 {[%clk 0:00:22.1]} 40... f5 {[%clk 0:00:59.7]} 41. Rd2
{[%clk 0:00:19.8]} 41... a3 {[%clk 0:00:56.7]} 42. Rc2 {[%clk 0:00:19.1]} 42...
Kb6 {[%clk 0:00:51.8]} 43. Rd2 {[%clk 0:00:19]} 43... Ka5 {[%clk 0:00:50]} 44.
e4 {[%clk 0:00:20.3]} 44... fxe4 {[%clk 0:00:50.8]} 45. f5 {[%clk 0:00:21.7]}
45... Rb1 {[%clk 0:00:47.4]} 46. f6 {[%clk 0:00:17.6]} 46... Rb2 {[%clk
0:00:44.3]} 47. f7 {[%clk 0:00:17.7]} 47... Rxd2+ {[%clk 0:00:44.3]} 0-1

[Event "*** Titled Tuesday Blitz"]
[Site "Chess.com"]
[Date "2019.04.02"]
[Round "5"]
[White "NikolaN98"]
[Black "KRASAVCHIK2002"]
[Result "0-1"]
[WhiteElo "2519"]
[BlackElo "2409"]
[TimeControl "180+2"]
[EndTime "15:03:57 PDT"]
[Termination "KRASAVCHIK2002 won by resignation"]

1. e4 {[%clk 0:02:17.1]} 1... c5 {[%clk 0:02:58.6]} 2. Nc3 {[%clk 0:02:15.7]}
2... Nc6 {[%clk 0:02:59.1]} 3. f4 {[%clk 0:02:16.7]} 3... e6 {[%clk 0:02:53.2]}
4. Nf3 {[%clk 0:02:17.3]} 4... g6 {[%clk 0:02:52.7]} 5. d4 {[%clk 0:02:10.7]}
5... cxd4 {[%clk 0:02:45]} 6. Nxd4 {[%clk 0:02:11.5]} 6... d5 {[%clk 0:01:51.3]}
7. Bb5 {[%clk 0:01:56.9]} 7... Ne7 {[%clk 0:01:46.9]} 8. exd5 {[%clk 0:01:15.7]}
8... exd5 {[%clk 0:01:45.4]} 9. Nxc6 {[%clk 0:01:07.6]} 9... bxc6 {[%clk
0:01:43.9]} 10. Nxd5 {[%clk 0:00:56.8]} 10... Bg7 {[%clk 0:01:19.8]} 11. Nxe7
{[%clk 0:00:37.7]} 11... Qxe7+ {[%clk 0:01:19.7]} 12. Be2 {[%clk 0:00:37.8]}
12... Bg4 {[%clk 0:01:10.9]} 13. h3 {[%clk 0:00:22.2]} 13... Rd8 {[%clk
0:01:02.3]} 14. Bd2 {[%clk 0:00:21.2]} 14... Bf5 {[%clk 0:00:46.2]} 15. O-O
{[%clk 0:00:18.4]} 15... Bxb2 {[%clk 0:00:38]} 16. Rb1 {[%clk 0:00:14.4]} 16...
Bd4+ {[%clk 0:00:33.3]} 17. Kh1 {[%clk 0:00:15]} 17... O-O {[%clk 0:00:34.4]}
18. Qe1 {[%clk 0:00:13.9]} 18... Rfe8 {[%clk 0:00:33.7]} 19. Bf3 {[%clk
0:00:14.8]} 19... Bxc2 {[%clk 0:00:30.4]} 20. Rc1 {[%clk 0:00:15.2]} 20... Bd3
{[%clk 0:00:30.5]} 21. Qxe7 {[%clk 0:00:12.4]} 21... Rxe7 {[%clk 0:00:31.4]} 22.
Rfe1 {[%clk 0:00:13.5]} 22... Rxe1+ {[%clk 0:00:30.9]} 23. Bxe1 {[%clk 0:00:09]}
23... c5 {[%clk 0:00:30.9]} 24. Ba5 {[%clk 0:00:06.4]} 24... Re8 {[%clk
0:00:23.9]} 25. Rd1 {[%clk 0:00:07.5]} 25... c4 {[%clk 0:00:21.4]} 26. Bd5
{[%clk 0:00:06]} 26... Bb6 {[%clk 0:00:18.6]} 27. Bc3 {[%clk 0:00:04.8]} 27...
Re2 {[%clk 0:00:17.1]} 28. a4 {[%clk 0:00:05.1]} 28... Bc7 {[%clk 0:00:11.1]}
29. Bd2 {[%clk 0:00:03.1]} 29... Bc2 {[%clk 0:00:08.3]} 30. Rc1 {[%clk
0:00:02.9]} 30... Rxd2 {[%clk 0:00:09.8]} 31. Bxc4 {[%clk 0:00:03.6]} 31... Bxf4
{[%clk 0:00:11]} 32. Bf1 {[%clk 0:00:03.5]} 32... Be4 {[%clk 0:00:11.3]} 33. Kg1
{[%clk 0:00:04.2]} 33... Be3+ {[%clk 0:00:12.2]} 34. Kh1 {[%clk 0:00:05.6]}
34... Bd3 {[%clk 0:00:12.6]} 35. Re1 {[%clk 0:00:05.2]} 35... Bxf1 {[%clk
0:00:11.9]} 36. Rxf1 {[%clk 0:00:06.6]} 36... Ra2 {[%clk 0:00:13.1]} 37. Re1
{[%clk 0:00:07.1]} 37... Bb6 {[%clk 0:00:13.9]} 38. Re8+ {[%clk 0:00:07]} 38...
Kg7 {[%clk 0:00:15]} 39. a5 {[%clk 0:00:08.1]} 39... Rxa5 {[%clk 0:00:15.1]} 0-1

[Event "*** Titled Tuesday Blitz"]
[Site "Chess.com"]
[Date "2019.04.02"]
[Round "5"]
[White "XiaoKangZhong"]
[Black "martinjogstad99"]
[Result "0-1"]
[WhiteElo "2108"]
[BlackElo "2217"]
[TimeControl "180+2"]
[EndTime "15:03:58 PDT"]
[Termination "martinjogstad99 won by checkmate"]

1. e4 {[%clk 0:03:01.9]} 1... c5 {[%clk 0:03:00.6]} 2. Nf3 {[%clk 0:03:02.1]}
2... e6 {[%clk 0:03:01.9]} 3. c3 {[%clk 0:03:02.8]} 3... Nf6 {[%clk 0:03:02.2]}
4. e5 {[%clk 0:03:04.3]} 4... Nd5 {[%clk 0:03:03.8]} 5. d4 {[%clk 0:03:05.9]}
5... cxd4 {[%clk 0:03:05.3]} 6. cxd4 {[%clk 0:03:07.8]} 6... d6 {[%clk
0:03:06.9]} 7. Bc4 {[%clk 0:03:07.3]} 7... Nc6 {[%clk 0:03:03.5]} 8. Bxd5 {[%clk
0:03:03.3]} 8... exd5 {[%clk 0:03:04.4]} 9. O-O {[%clk 0:03:05.2]} 9... Be7
{[%clk 0:03:05.2]} 10. Nc3 {[%clk 0:03:02.1]} 10... Be6 {[%clk 0:02:59.8]} 11.
Re1 {[%clk 0:02:53.7]} 11... O-O {[%clk 0:03:00.4]} 12. Bf4 {[%clk 0:02:43.2]}
12... Rc8 {[%clk 0:02:53.6]} 13. Nb5 {[%clk 0:02:33]} 13... dxe5 {[%clk
0:02:51.7]} 14. dxe5 {[%clk 0:02:34.1]} 14... a6 {[%clk 0:02:32.4]} 15. Nbd4
{[%clk 0:02:34.4]} 15... Nxd4 {[%clk 0:02:30.5]} 16. Nxd4 {[%clk 0:02:36.3]}
16... Qb6 {[%clk 0:02:29]} 17. b3 {[%clk 0:02:35]} 17... Bc5 {[%clk 0:02:27.2]}
18. Be3 {[%clk 0:02:33.9]} 18... h6 {[%clk 0:02:03.7]} 19. Rc1 {[%clk
0:02:30.5]} 19... Bxd4 {[%clk 0:02:04.5]} 20. Qxd4 {[%clk 0:02:24.3]} 20... Qa5
{[%clk 0:01:47.3]} 21. a4 {[%clk 0:02:17.9]} 21... Rc2 {[%clk 0:01:23.3]} 22.
Qf4 {[%clk 0:01:30.4]} 22... Rfc8 {[%clk 0:01:17.9]} 23. b4 {[%clk 0:01:25.9]}
23... Qxa4 {[%clk 0:01:13.5]} 24. Rxc2 {[%clk 0:01:24.2]} 24... Rxc2 {[%clk
0:01:08.3]} 25. Qg3 {[%clk 0:01:24.2]} 25... Qa3 {[%clk 0:01:03.8]} 26. Qf4
{[%clk 0:01:12.6]} 26... Ra2 {[%clk 0:00:41.9]} 27. h4 {[%clk 0:01:09]} 27...
Qb2 {[%clk 0:00:32.3]} 28. Kh2 {[%clk 0:00:59.5]} 28... Qc2 {[%clk 0:00:28.6]}
29. Rc1 {[%clk 0:00:56.7]} 29... Qd3 {[%clk 0:00:29]} 30. Rc7 {[%clk 0:00:51.7]}
30... Ra1 {[%clk 0:00:23.3]} 31. Rxb7 {[%clk 0:00:48.9]} 31... Qd1 {[%clk
0:00:20.5]} 32. Rb8+ {[%clk 0:00:47.6]} 32... Kh7 {[%clk 0:00:20.6]} 33. Qd4
{[%clk 0:00:34.3]} 33... Qh1+ {[%clk 0:00:19.2]} 34. Kg3 {[%clk 0:00:35.1]}
34... Rg1 {[%clk 0:00:19.6]} 35. Kf3 {[%clk 0:00:32.6]} 35... Qxg2+ {[%clk
0:00:20.1]} 36. Ke2 {[%clk 0:00:33.4]} 36... Qf1+ {[%clk 0:00:21.4]} 37. Kd2
{[%clk 0:00:31.2]} 37... Qd1+ {[%clk 0:00:22.3]} 38. Kc3 {[%clk 0:00:32.3]}
38... Qa1+ {[%clk 0:00:20.6]} 39. Kb3 {[%clk 0:00:17.5]} 39... Rb1+ {[%clk
0:00:21.3]} 40. Kc2 {[%clk 0:00:19.1]} 40... Qa2+ {[%clk 0:00:22.2]} 41. Kd3
{[%clk 0:00:13.3]} 41... Rd1+ {[%clk 0:00:21.4]} 42. Kc3 {[%clk 0:00:13.5]}
42... Rxd4 {[%clk 0:00:21.3]} 43. Kxd4 {[%clk 0:00:14.9]} 43... Qc4# {[%clk
0:00:22.4]} 0-1

[Event "*** Titled Tuesday Blitz"]
[Site "Chess.com"]
[Date "2019.04.02"]
[Round "5"]
[White "SabinaFoisor"]
[Black "melicg25"]
[Result "0-1"]
[WhiteElo "2165"]
[BlackElo "2305"]
[TimeControl "180+2"]
[EndTime "15:03:59 PDT"]
[Termination "melicg25 won by checkmate"]

1. d4 {[%clk 0:03:01.9]} 1... Nf6 {[%clk 0:03:00.7]} 2. Nf3 {[%clk 0:03:02.6]}
2... g6 {[%clk 0:03:01.9]} 3. Nbd2 {[%clk 0:02:59.5]} 3... Bg7 {[%clk
0:03:01.7]} 4. e4 {[%clk 0:03:00.7]} 4... d6 {[%clk 0:03:03.2]} 5. Be2 {[%clk
0:03:01.2]} 5... O-O {[%clk 0:03:04.6]} 6. O-O {[%clk 0:03:02.2]} 6... c5 {[%clk
0:03:05.5]} 7. c3 {[%clk 0:03:02.9]} 7... cxd4 {[%clk 0:03:06.2]} 8. cxd4 {[%clk
0:03:04]} 8... Nc6 {[%clk 0:03:07.8]} 9. d5 {[%clk 0:02:58.2]} 9... Nb8 {[%clk
0:03:07.9]} 10. Re1 {[%clk 0:02:51.1]} 10... Bg4 {[%clk 0:03:09.1]} 11. h3
{[%clk 0:02:51.4]} 11... Bxf3 {[%clk 0:03:09.5]} 12. Bxf3 {[%clk 0:02:52.1]}
12... Nbd7 {[%clk 0:03:11]} 13. Nb3 {[%clk 0:02:46.6]} 13... Rc8 {[%clk
0:03:10.7]} 14. Be3 {[%clk 0:02:46.1]} 14... a6 {[%clk 0:03:10.5]} 15. Rc1
{[%clk 0:02:42.5]} 15... Rxc1 {[%clk 0:03:09]} 16. Qxc1 {[%clk 0:02:44.4]} 16...
Qc8 {[%clk 0:03:10.2]} 17. Na5 {[%clk 0:02:32.9]} 17... Nc5 {[%clk 0:03:04.6]}
18. Bxc5 {[%clk 0:02:11.9]} 18... dxc5 {[%clk 0:03:04.1]} 19. a4 {[%clk
0:02:09.7]} 19... Nd7 {[%clk 0:03:04]} 20. b3 {[%clk 0:02:08.5]} 20... Ne5
{[%clk 0:03:02]} 21. Be2 {[%clk 0:02:09.2]} 21... b6 {[%clk 0:02:57.5]} 22. Nc4
{[%clk 0:02:09.7]} 22... Nd7 {[%clk 0:02:52]} 23. Ne3 {[%clk 0:02:05.1]} 23...
f5 {[%clk 0:02:33.8]} 24. exf5 {[%clk 0:01:53.1]} 24... gxf5 {[%clk 0:02:35.6]}
25. Qc2 {[%clk 0:01:41.7]} 25... Ne5 {[%clk 0:02:30.8]} 26. Nc4 {[%clk
0:01:31.8]} 26... Nxc4 {[%clk 0:02:19.2]} 27. Bxc4 {[%clk 0:01:33.7]} 27... Qd7
{[%clk 0:02:14.6]} 28. d6+ {[%clk 0:01:29.3]} 28... Kh8 {[%clk 0:02:13.7]} 29.
dxe7 {[%clk 0:01:30.8]} 29... Re8 {[%clk 0:02:14.6]} 30. Qe2 {[%clk 0:01:28.5]}
30... Bf6 {[%clk 0:02:14.4]} 31. Qf3 {[%clk 0:01:15]} 31... Rxe7 {[%clk
0:02:01.4]} 32. Qa8+ {[%clk 0:01:00.3]} 32... Kg7 {[%clk 0:02:01.8]} 33. Qg8+
{[%clk 0:01:00.8]} 33... Kh6 {[%clk 0:02:02.9]} 34. Qf8+ {[%clk 0:00:53]} 34...
Kg6 {[%clk 0:02:01.7]} 35. Rf1 {[%clk 0:00:43.9]} 35... Re8 {[%clk 0:01:50]} 36.
Qxe8+ {[%clk 0:00:19.5]} 36... Qxe8 {[%clk 0:01:50.2]} 37. Bxa6 {[%clk
0:00:21.4]} 37... Bd4 {[%clk 0:01:50]} 38. Bc4 {[%clk 0:00:21.9]} 38... f4
{[%clk 0:01:49]} 39. Kh1 {[%clk 0:00:22.2]} 39... f3 {[%clk 0:01:43.2]} 40. g3
{[%clk 0:00:20.6]} 40... Qe5 {[%clk 0:01:38.3]} 41. Kh2 {[%clk 0:00:21.5]} 41...
Kg7 {[%clk 0:01:31.9]} 42. Bd3 {[%clk 0:00:21.8]} 42... Qd5 {[%clk 0:01:30.9]}
43. Bc4 {[%clk 0:00:23.3]} 43... Qe4 {[%clk 0:01:31.7]} 44. Kg1 {[%clk
0:00:23.3]} 44... Qf5 {[%clk 0:01:31.9]} 45. Kh2 {[%clk 0:00:24.4]} 45... Qc2
{[%clk 0:01:33]} 46. Kg1 {[%clk 0:00:23.3]} 46... Qd2 {[%clk 0:01:34]} 47. Bb5
{[%clk 0:00:23.2]} 47... Kf6 {[%clk 0:01:34]} 48. Bc4 {[%clk 0:00:24.6]} 48...
h5 {[%clk 0:01:34.1]} 49. Bb5 {[%clk 0:00:25]} 49... Qc2 {[%clk 0:01:30.7]} 50.
h4 {[%clk 0:00:26]} 50... Qf5 {[%clk 0:01:28.4]} 51. Kh2 {[%clk 0:00:25.7]}
51... Qc2 {[%clk 0:01:26.6]} 52. Bc4 {[%clk 0:00:26.4]} 52... Bxf2 {[%clk
0:01:25.3]} 53. Kh3 {[%clk 0:00:23.7]} 53... Ke5 {[%clk 0:01:20.7]} 54. g4
{[%clk 0:00:20.8]} 54... hxg4+ {[%clk 0:01:18.9]} 55. Kxg4 {[%clk 0:00:22.7]}
55... Qf5# {[%clk 0:01:19.3]} 0-1

[Event "*** Titled Tuesday Blitz"]
[Site "Chess.com"]
[Date "2019.04.02"]
[Round "5"]
[White "Kawhi_Leonard2"]
[Black "r31415"]
[Result "0-1"]
[WhiteElo "2209"]
[BlackElo "2344"]
[TimeControl "180+2"]
[EndTime "15:04:01 PDT"]
[Termination "r31415 won by resignation"]

1. e4 {[%clk 0:03:01.9]} 1... d6 {[%clk 0:02:59.9]} 2. d4 {[%clk 0:03:02.1]}
2... Nf6 {[%clk 0:03:01.5]} 3. Nc3 {[%clk 0:03:03.3]} 3... g6 {[%clk 0:03:02.9]}
4. Nf3 {[%clk 0:03:04.5]} 4... Bg7 {[%clk 0:03:03.9]} 5. Be2 {[%clk 0:03:06.1]}
5... O-O {[%clk 0:03:05.2]} 6. O-O {[%clk 0:03:07.6]} 6... a6 {[%clk 0:03:06.7]}
7. a4 {[%clk 0:03:07.8]} 7... b6 {[%clk 0:03:06.9]} 8. Re1 {[%clk 0:03:08.9]}
8... e6 {[%clk 0:03:06]} 9. Bf4 {[%clk 0:03:01.8]} 9... Bb7 {[%clk 0:03:06]} 10.
Bf1 {[%clk 0:03:03]} 10... Nc6 {[%clk 0:03:03.7]} 11. Qd2 {[%clk 0:02:59.5]}
11... Re8 {[%clk 0:02:52.6]} 12. Bh6 {[%clk 0:03:00.3]} 12... Bh8 {[%clk
0:02:53]} 13. Bg5 {[%clk 0:03:00.7]} 13... Qb8 {[%clk 0:02:44.9]} 14. Rad1
{[%clk 0:02:54.9]} 14... Bg7 {[%clk 0:02:36.6]} 15. Qf4 {[%clk 0:02:49.2]} 15...
Nd7 {[%clk 0:02:05.1]} 16. Qh4 {[%clk 0:02:49.9]} 16... f6 {[%clk 0:01:47.8]}
17. Bh6 {[%clk 0:02:48.2]} 17... Ne7 {[%clk 0:01:40.2]} 18. Bc4 {[%clk
0:02:42.3]} 18... d5 {[%clk 0:01:36.1]} 19. exd5 {[%clk 0:02:41.3]} 19... exd5
{[%clk 0:01:07.2]} 20. Rxe7 {[%clk 0:02:40.5]} 20... Rxe7 {[%clk 0:01:05.4]} 21.
Nxd5 {[%clk 0:02:41.3]} 21... Bxd5 {[%clk 0:00:35.9]} 22. Bxd5+ {[%clk
0:02:42.3]} 22... Kh8 {[%clk 0:00:37.2]} 23. Bxa8 {[%clk 0:02:37.1]} 23... Qxa8
{[%clk 0:00:36.5]} 24. Bxg7+ {[%clk 0:02:32.7]} 24... Kxg7 {[%clk 0:00:37.3]}
25. d5 {[%clk 0:02:28.8]} 25... Nc5 {[%clk 0:00:31.8]} 26. Qd4 {[%clk
0:02:22.4]} 26... Qe8 {[%clk 0:00:24.2]} 27. a5 {[%clk 0:02:12.2]} 27... Re4
{[%clk 0:00:15.3]} 28. Qc3 {[%clk 0:02:13.2]} 28... Qb5 {[%clk 0:00:10.5]} 29.
axb6 {[%clk 0:01:57.5]} 29... Rc4 {[%clk 0:00:10.9]} 30. bxc7 {[%clk 0:01:44.1]}
30... Rxc3 {[%clk 0:00:11.6]} 31. c8=Q {[%clk 0:01:45.2]} 31... Rxc2 {[%clk
0:00:10.8]} 32. Qc7+ {[%clk 0:01:37.5]} 32... Qd7 {[%clk 0:00:05.8]} 33. Qb6
{[%clk 0:01:11.3]} 33... Qb7 {[%clk 0:00:06.2]} 34. Qd6 {[%clk 0:00:41]} 34...
Qd7 {[%clk 0:00:07.1]} 35. Qc6 {[%clk 0:00:34.8]} 35... Qb7 {[%clk 0:00:03.6]}
36. Re1 {[%clk 0:00:24.4]} 36... Qxb2 {[%clk 0:00:02.8]} 37. Re7+ {[%clk
0:00:16.7]} 37... Kh6 {[%clk 0:00:03.8]} 38. h4 {[%clk 0:00:17.3]} 38... Qc1+
{[%clk 0:00:03.6]} 39. Kh2 {[%clk 0:00:17.5]} 39... Qf4+ {[%clk 0:00:04.7]} 40.
g3 {[%clk 0:00:18.7]} 40... Qxf3 {[%clk 0:00:05.1]} 0-1

[Event "*** Titled Tuesday Blitz"]
[Site "Chess.com"]
[Date "2019.04.02"]
[Round "5"]
[White "Dedic8"]
[Black "RayRobson"]
[Result "0-1"]
[WhiteElo "2710"]
[BlackElo "2858"]
[TimeControl "180+2"]
[EndTime "15:04:03 PDT"]
[Termination "RayRobson won by resignation"]

1. e4 {[%clk 0:03:01.9]} 1... c5 {[%clk 0:02:58]} 2. Nf3 {[%clk 0:03:03]} 2...
d6 {[%clk 0:02:58.8]} 3. d4 {[%clk 0:03:04.7]} 3... cxd4 {[%clk 0:03:00]} 4.
Nxd4 {[%clk 0:03:06.6]} 4... Nf6 {[%clk 0:03:01.5]} 5. Nc3 {[%clk 0:03:08.3]}
5... a6 {[%clk 0:03:03.1]} 6. f3 {[%clk 0:03:10]} 6... e5 {[%clk 0:03:02.8]} 7.
Nb3 {[%clk 0:03:11.3]} 7... Be6 {[%clk 0:03:04.4]} 8. Be3 {[%clk 0:03:12.6]}
8... Nbd7 {[%clk 0:03:03.4]} 9. Qd2 {[%clk 0:03:14]} 9... h5 {[%clk 0:03:04]}
10. Be2 {[%clk 0:03:13.6]} 10... b5 {[%clk 0:02:59.3]} 11. O-O {[%clk
0:02:16.8]} 11... Nb6 {[%clk 0:02:41.8]} 12. a4 {[%clk 0:01:38.1]} 12... b4
{[%clk 0:02:31.8]} 13. Na2 {[%clk 0:01:27.3]} 13... Nc4 {[%clk 0:02:27.5]} 14.
Bxc4 {[%clk 0:01:14.8]} 14... Bxc4 {[%clk 0:02:29.4]} 15. Rfd1 {[%clk
0:01:16.5]} 15... a5 {[%clk 0:02:27.9]} 16. Qf2 {[%clk 0:01:16]} 16... Rb8
{[%clk 0:02:03.1]} 17. Nd2 {[%clk 0:01:15.4]} 17... Be6 {[%clk 0:01:59]} 18. c4
{[%clk 0:01:11.5]} 18... bxc3 {[%clk 0:01:46.3]} 19. Nxc3 {[%clk 0:01:11]} 19...
Be7 {[%clk 0:01:35]} 20. Nb5 {[%clk 0:00:59.8]} 20... O-O {[%clk 0:01:32.2]} 21.
b3 {[%clk 0:00:53.2]} 21... d5 {[%clk 0:01:12.5]} 22. exd5 {[%clk 0:00:53.3]}
22... Nxd5 {[%clk 0:00:44.4]} 23. Nc4 {[%clk 0:00:54.6]} 23... Qc8 {[%clk
0:00:41.3]} 24. Rac1 {[%clk 0:00:29]} 24... Nxe3 {[%clk 0:00:40.7]} 25. Nxe3
{[%clk 0:00:30.2]} 25... Qa6 {[%clk 0:00:26.5]} 26. Nd5 {[%clk 0:00:31.4]} 26...
Bxd5 {[%clk 0:00:18.1]} 27. Rxd5 {[%clk 0:00:31.9]} 27... Rbc8 {[%clk
0:00:12.6]} 28. Rcd1 {[%clk 0:00:31.5]} 28... Bf6 {[%clk 0:00:04.1]} 29. h4
{[%clk 0:00:29.5]} 29... Rc6 {[%clk 0:00:02.7]} 30. Kh2 {[%clk 0:00:09.5]} 30...
Rfc8 {[%clk 0:00:03.7]} 31. Rd7 {[%clk 0:00:10.4]} 31... Rc2 {[%clk 0:00:04.7]}
32. Qg3 {[%clk 0:00:11.9]} 32... Qe6 {[%clk 0:00:05.6]} 33. R1d6 {[%clk
0:00:12.5]} 33... Qf5 {[%clk 0:00:06.6]} 34. Ra7 {[%clk 0:00:11.9]} 34... Qf4
{[%clk 0:00:03.5]} 35. Qxf4 {[%clk 0:00:12.6]} 35... exf4 {[%clk 0:00:05.4]} 36.
Rda6 {[%clk 0:00:06.1]} 36... Bxh4 {[%clk 0:00:05.3]} 37. Nd6 {[%clk 0:00:06.1]}
37... Bg3+ {[%clk 0:00:05.2]} 38. Kh3 {[%clk 0:00:06.9]} 38... Rc1 {[%clk
0:00:05.6]} 0-1

[Event "*** Titled Tuesday Blitz"]
[Site "Chess.com"]
[Date "2019.04.02"]
[Round "5"]
[White "champ2005"]
[Black "maestroza"]
[Result "1-0"]
[WhiteElo "2800"]
[BlackElo "2482"]
[TimeControl "180+2"]
[EndTime "15:04:05 PDT"]
[Termination "champ2005 won on time"]

1. d4 {[%clk 0:03:00.3]} 1... Nf6 {[%clk 0:03:00.7]} 2. Nc3 {[%clk 0:03:01.3]}
2... d5 {[%clk 0:02:56.8]} 3. Bf4 {[%clk 0:03:02.7]} 3... a6 {[%clk 0:02:56.8]}
4. e3 {[%clk 0:03:02.9]} 4... e6 {[%clk 0:02:58.2]} 5. Nf3 {[%clk 0:03:03.3]}
5... c5 {[%clk 0:02:59.3]} 6. dxc5 {[%clk 0:03:02]} 6... Bxc5 {[%clk 0:02:59.6]}
7. Bd3 {[%clk 0:03:03.6]} 7... O-O {[%clk 0:02:53.2]} 8. O-O {[%clk 0:03:03.8]}
8... Nc6 {[%clk 0:02:53.6]} 9. e4 {[%clk 0:03:04.4]} 9... d4 {[%clk 0:02:45.1]}
10. Ne2 {[%clk 0:03:04]} 10... h6 {[%clk 0:02:27.5]} 11. e5 {[%clk 0:03:04.9]}
11... Nd5 {[%clk 0:02:26]} 12. Bg3 {[%clk 0:03:04.3]} 12... b6 {[%clk
0:02:15.1]} 13. Be4 {[%clk 0:03:04.3]} 13... Bb7 {[%clk 0:02:03.5]} 14. Nexd4
{[%clk 0:03:05.1]} 14... Nxd4 {[%clk 0:01:58.2]} 15. Nxd4 {[%clk 0:03:07]} 15...
Qc7 {[%clk 0:01:43.3]} 16. Re1 {[%clk 0:02:56.7]} 16... Rfd8 {[%clk 0:01:42.6]}
17. c3 {[%clk 0:02:57.8]} 17... Rd7 {[%clk 0:01:38]} 18. Qg4 {[%clk 0:02:49.3]}
18... Rad8 {[%clk 0:01:22.7]} 19. Rad1 {[%clk 0:02:47.8]} 19... Ne7 {[%clk
0:01:18.5]} 20. Bxb7 {[%clk 0:02:38.6]} 20... Qxb7 {[%clk 0:01:19.3]} 21. Nb3
{[%clk 0:02:38.7]} 21... Nf5 {[%clk 0:01:04.9]} 22. Rxd7 {[%clk 0:02:35.8]}
22... Rxd7 {[%clk 0:01:05.2]} 23. Qf3 {[%clk 0:02:34.3]} 23... Qc7 {[%clk
0:01:00.3]} 24. Bf4 {[%clk 0:02:32.1]} 24... Qd8 {[%clk 0:00:55]} 25. Qe2 {[%clk
0:02:25.9]} 25... a5 {[%clk 0:00:50.5]} 26. a4 {[%clk 0:02:20.4]} 26... Rd5
{[%clk 0:00:48.6]} 27. g4 {[%clk 0:02:12.1]} 27... Ne7 {[%clk 0:00:48.1]} 28.
Bg3 {[%clk 0:02:07.6]} 28... Qd7 {[%clk 0:00:48.7]} 29. Qe4 {[%clk 0:02:07.7]}
29... Rd3 {[%clk 0:00:34.4]} 30. Nxc5 {[%clk 0:02:04]} 30... bxc5 {[%clk
0:00:35.3]} 31. Qa8+ {[%clk 0:02:02.5]} 31... Kh7 {[%clk 0:00:36.2]} 32. Qe4+
{[%clk 0:02:03.4]} 32... Kg8 {[%clk 0:00:36.6]} 33. Qa8+ {[%clk 0:01:54.9]}
33... Kh7 {[%clk 0:00:36.8]} 34. Qxa5 {[%clk 0:01:56.4]} 34... Rd2 {[%clk
0:00:26.6]} 35. Qxc5 {[%clk 0:01:45.2]} 35... Rxb2 {[%clk 0:00:27.3]} 36. a5
{[%clk 0:01:43.3]} 36... Ra2 {[%clk 0:00:28]} 37. Qd6 {[%clk 0:01:39.5]} 37...
Qa7 {[%clk 0:00:27.4]} 38. Qd3+ {[%clk 0:01:37.9]} 38... Kh8 {[%clk 0:00:16.8]}
39. Rb1 {[%clk 0:01:38.9]} 39... Rxa5 {[%clk 0:00:14.8]} 40. Qd8+ {[%clk
0:01:38.2]} 40... Kh7 {[%clk 0:00:15.2]} 41. Qd3+ {[%clk 0:01:31.8]} 41... Kh8
{[%clk 0:00:16.4]} 42. Qd8+ {[%clk 0:01:26.7]} 42... Kh7 {[%clk 0:00:17.3]} 43.
Qd1 {[%clk 0:01:28.6]} 43... Nd5 {[%clk 0:00:16.8]} 44. c4 {[%clk 0:01:27.9]}
44... Ne7 {[%clk 0:00:17.8]} 45. h4 {[%clk 0:01:28]} 45... Ra4 {[%clk
0:00:18.3]} 46. h5 {[%clk 0:01:27.3]} 46... Qa6 {[%clk 0:00:17.9]} 47. Rb8
{[%clk 0:01:18.2]} 47... Qxc4 {[%clk 0:00:15.6]} 48. Qd8 {[%clk 0:01:13]} 1-0